[Event "African Games-chT 2019"]
[Site "Casablanca"]
[Date "2019.08.24"]
[Round "2.13"]
[White "Gohil, Mehul"]
[Black "Chumfwa, Stanley"]
[Result "0-1"]
[ECO "A45"]
[WhiteElo "2076"]
[BlackElo "2317"]
[Annotator "NA"]
[PlyCount "100"]
[EventDate "2019.08.24"]
[EventType "team-tourn"]
[EventCountry "MAR"]
[SourceTitle "playchess.com"]
[Source "ChessBase"]
[SourceQuality "1"]
[WhiteTeam "Kenya"]
[BlackTeam "Zambia"]
[WhiteTeamCountry "KEN"]
[BlackTeamCountry "ZAM"]
[TimeControl "900+10"]

1. d4 {[%emt 0:00:00]} Nf6 {[%emt 0:00:00]} 2. Bg5 {[%emt 0:00:00]} e6 {[%emt 0:00:00]} 3. e4 {[%emt 0:00:00]} h6 {[%emt 0:00:00]} 4. Bxf6 {[%emt 0:00:03]} Qxf6 {[%emt 0:00:00]} 5. c3 {[%emt 0:00:03]} d5 {[%emt 0:00:05]} 6. Nd2 {[%emt 0:00:05]} c5 {[%emt 0:00:04]} 7. Ngf3 {[%emt 0:00:04]} Nc6 {[%emt 0:00:10]} 8. Bb5 {[%emt 0:00:06]} Bd7 {[%emt 0:00:05]} 9. O-O {[%emt 0:00:05]} cxd4 {[%emt 0:00:49]} 10. Nxd4 {[%emt 0:00:06]} dxe4 {[%emt 0:04:07]} 11. Nxe4 {[%emt 0:00:23]} Qf4 {[%emt 0:00:10]} 12. Re1 {[%emt 0:01:57]} Be7 {[%emt 0:00:09]} 13. g3 {[%emt 0:02:31]} Qc7 {[%emt 0:00:25]} 14. Qg4 {[%emt 0:02:18]} O-O {[%emt 0:00:37]} 15. Nxc6 {[%emt 0:00:43]} bxc6 {[%emt 0:00:30]} 16. Bd3 {[%emt 0:00:06]} f5 {[%emt 0:03:01]} 17. Qg6 {[%emt 0:00:10]} fxe4 {[%emt 0:00:07]} 18. Qxe4 {[%emt 0:00:28]} Rf6 {[%emt 0:01:41]} 19. Qh7+ {[%emt 0:01:16]} Kf7 {[%emt 0:00:02]} 20. Be2 {[%emt 0:00:06]} Qe5 {[%emt 0:01:15]} 21. Rad1 {[%emt 0:00:14]} Rd8 {[%emt 0:00:20]} 22. Bd3 {[%emt 0:04:14]} Qc5 {[%emt 0:00:50]} 23. Re3 {[%emt 0:00:06]} Be8 {[%emt 0:01:04]} 24. b4 {[%emt 0:00:32]} Qh5 {[%emt 0:01:43]} 25. Rde1 {[%emt 0:00:11]} Rd5 {[%emt 0:00:37]} 26. Qh8 {[%emt 0:01:58]} Rdf5 {[%emt 0:00:55]} 27. Bc4 {[%emt 0:00:32]} Rxf2 {[%emt 0:00:13]} 28. Bxe6+ {[%emt 0:00:06]} Rxe6 {[%emt 0:00:05]} 29. Kxf2 {[%emt 0:00:08]} Qxh2+ {[%emt 0:00:02]} 30. Kf3 {[%emt 0:00:13]} Qh5+ {[%emt 0:00:08]} 31. Kg2 {[%emt 0:00:06]} Qd5+ {[%emt 0:00:07]} 32. Kg1 {[%emt 0:00:11]} Rxe3 {[%emt 0:00:08]} 33. Rxe3 {[%emt 0:00:01]} Qd1+ {[%emt 0:00:02]} 34. Kf2 {[%emt 0:00:04]} Qd2+ {[%emt 0:00:02]} 35. Kf3 {[%emt 0:00:11]} Qd1+ {[%emt 0:00:25]} 36. Kf2 {[%emt 0:00:05]} Qd2+ {[%emt 0:00:11]} 37. Kf3 {[%emt 0:00:01]} Qd5+ {[%emt 0:00:01]} 38. Kf2 {[%emt 0:00:01]} Qxa2+ {[%emt 0:00:29]} 39. Kg1 {[%emt 0:00:37]} Qb1+ {[%emt 0:00:13]} 40. Kf2 {[%emt 0:00:09]} Qc2+ {[%emt 0:00:08]} 41. Kf3 {[%emt 0:00:01]} Qf5+ {[%emt 0:00:17]} 42. Kg2 {[%emt 0:00:08]} Qd5+ {[%emt 0:00:20]} 43. Kf2 {[%emt 0:00:13]} c5 {[%emt 0:00:11]} 44. Qh7 {[%emt 0:00:51]} cxb4 {[%emt 0:00:17]} 45. Rf3+ {[%emt 0:00:16]} Bf6 {[%emt 0:00:01]} 46. cxb4 {[%emt 0:00:05]} Bc6 {[%emt 0:00:02]} 47. Rd3 {[%emt 0:00:15]} Bd4+ {[%emt 0:00:08]} 48. Ke2 {[%emt 0:00:07]} Qg2+ {[%emt 0:00:04]} 49. Kd1 {[%emt 0:00:06]} Ba4+ {[%emt 0:00:03]} 50. Ke1 {[%emt 0:00:04]} Qf2# {[%emt 0:00:03]} 0-1

[Event "African Games-chT 2019"]
[Site "Casablanca"]
[Date "2019.08.24"]
[Round "2.14"]
[White "Kayonde, Andrew"]
[Black "Sang, Ricky"]
[Result "1-0"]
[ECO "D00"]
[WhiteElo "2384"]
[BlackElo "1971"]
[Annotator "ChessBase"]
[PlyCount "125"]
[EventDate "2019.08.24"]
[EventType "team-tourn"]
[EventCountry "MAR"]
[SourceTitle "playchess.com"]
[Source "ChessBase"]
[SourceQuality "1"]
[WhiteTeam "Zambia"]
[BlackTeam "Kenya"]
[WhiteTeamCountry "ZAM"]
[BlackTeamCountry "KEN"]
[TimeControl "900+10"]

1. d4 {[%emt 0:00:00]} d5 {[%emt 0:00:00]} 2. Bf4 {[%emt 0:00:03]} Nf6 {[%emt 0:00:05]} 3. e3 {[%emt 0:00:03]} e6 {[%emt 0:00:04]} 4. Nf3 {[%emt 0:00:48]} c5 {[%emt 0:00:16]} 5. c3 {[%emt 0:00:03]} Bd6 {[%emt 0:00:44]} 6. Ne5 {[%emt 0:00:13]} O-O {[%emt 0:00:12]} 7. Nd2 {[%emt 0:00:05]} Nc6 {[%emt 0:00:23]} 8. Bg3 {[%emt 0:00:20]} Qc7 {[%emt 0:01:25]} 9. f4 {[%emt 0:01:13]} b6 {[%emt 0:00:17]} 10. Bd3 {[%emt 0:00:07]} Bb7 {[%emt 0:00:11]} 11. O-O {[%emt 0:00:19]} Ne7 {[%emt 0:00:39]} 12. Rc1 {[%emt 0:00:43]} Ne4 {[%emt 0:02:33]} 13. Be1 {[%emt 0:03:15]} f5 {[%emt 0:00:27]} 14. Ndf3 {[%emt 0:00:52]} c4 {[%emt 0:00:53]} 15. Bxe4 {[%emt 0:00:23]} dxe4 {[%emt 0:00:32]} 16. Ng5 {[%emt 0:00:06]} Bd5 {[%emt 0:02:08]} 17. Qh5 {[%emt 0:01:19]} h6 {[%emt 0:01:10]} 18. Ngf7 {[%emt 0:00:45]} Bxe5 {[%emt 0:00:30]} 19. Nxe5 {[%emt 0:00:02]} Nc6 {[%emt 0:01:00]} 20. Rc2 {[%emt 0:01:11]} Nxe5 {[%emt 0:00:15]} 21. fxe5 {[%emt 0:00:02]} Qf7 {[%emt 0:00:16]} 22. Qh3 {[%emt 0:00:10]} Qg6 {[%emt 0:00:46]} 23. Rf4 {[%emt 0:00:23]} Rf7 {[%emt 0:00:48]} 24. Rcf2 {[%emt 0:02:16]} Raf8 {[%emt 0:00:10]} 25. Rh4 {[%emt 0:00:11]} Kh7 {[%emt 0:00:31]} 26. Rff4 {[%emt 0:00:04]} a5 {[%emt 0:00:49]} 27. a3 {[%emt 0:01:08]} a4 {[%emt 0:00:09]} 28. Rh5 {[%emt 0:00:21]} b5 {[%emt 0:00:20]} 29. Bg3 {[%emt 0:00:06]} Rc7 {[%emt 0:00:34]} 30. Rfh4 {[%emt 0:00:05]} Kg8 {[%emt 0:00:40]} 31. Bf4 {[%emt 0:00:05]} Qe8 {[%emt 0:01:04]} 32. Qg3 {[%emt 0:01:03]} Kf7 {[%emt 0:00:18]} 33. Bxh6 {[%emt 0:00:02]} gxh6 {[%emt 0:00:08]} 34. Rxh6 {[%emt 0:00:02]} Rg8 {[%emt 0:00:06]} 35. Rh7+ {[%emt 0:02:44]} Kf8 {[%emt 0:00:03]} 36. Qxg8+ {[%emt 0:00:13]} Kxg8 {[%emt 0:00:02]} 37. Rh8+ {[%emt 0:00:01]} Kg7 {[%emt 0:00:06]} 38. R4h7+ {[%emt 0:00:03]} Kg6 {[%emt 0:00:02]} 39. Rh6+ {[%emt 0:00:02]} Kg7 {[%emt 0:00:01]} 40. R8h7+ {[%emt 0:00:07]} Kg8 {[%emt 0:00:02]} 41. Rxc7 {[%emt 0:00:15]} Qf8 {[%emt 0:00:07]} 42. Rch7 {[%emt 0:00:10]} f4 {[%emt 0:00:47]} 43. Rh8+ {[%emt 0:00:02]} Kg7 {[%emt 0:00:05]} 44. R6h7+ {[%emt 0:00:02]} Kg6 {[%emt 0:00:03]} 45. Rxf8 {[%emt 0:00:02]} Kxh7 {[%emt 0:00:04]} 46. exf4 {[%emt 0:00:03]} Kg6 {[%emt 0:00:06]} 47. Kf2 {[%emt 0:00:02]} Kg7 {[%emt 0:00:12]} 48. Rb8 {[%emt 0:00:04]} Bc6 {[%emt 0:00:04]} 49. Rc8 {[%emt 0:00:02]} Bd5 {[%emt 0:00:04]} 50. Rc5 {[%emt 0:00:02]} Kg6 {[%emt 0:00:05]} 51. g4 {[%emt 0:00:01]} Kf7 {[%emt 0:00:04]} 52. Rxb5 {[%emt 0:00:01]} Bc6 {[%emt 0:00:09]} 53. Rc5 {[%emt 0:00:02]} Bd5 {[%emt 0:00:03]} 54. h4 {[%emt 0:00:01]} Kg6 {[%emt 0:00:08]} 55. f5+ {[%emt 0:00:01]} Kf7 {[%emt 0:00:14]} 56. g5 {[%emt 0:00:06]} Ba8 {[%emt 0:00:06]} 57. fxe6+ {[%emt 0:00:02]} Kxe6 {[%emt 0:00:02]} 58. Rxc4 {[%emt 0:00:01]} Kf5 {[%emt 0:00:03]} 59. Ke3 {[%emt 0:00:03]} Kg4 {[%emt 0:00:04]} 60. g6 {[%emt 0:00:01]} Bd5 {[%emt 0:00:07]} 61. Rc5 {[%emt 0:00:02]} Bg8 {[%emt 0:00:06]} 62. Rc8 {[%emt 0:00:04]} Be6 {[%emt 0:00:03]} 63. g7 {[%emt 0:00:01]} 1-0

[Event "African Games-chT 2019"]
[Site "Casablanca"]
[Date "2019.08.24"]
[Round "2.15"]
[White "Ndirangu, Joyce Nyaruai"]
[Black "Mwango, Lorita"]
[Result "1-0"]
[ECO "D00"]
[WhiteElo "1662"]
[BlackElo "1947"]
[Annotator "NA"]
[PlyCount "63"]
[EventDate "2019.08.24"]
[EventType "team-tourn"]
[EventCountry "MAR"]
[SourceTitle "playchess.com"]
[Source "ChessBase"]
[SourceQuality "1"]
[WhiteTeam "Kenya"]
[BlackTeam "Zambia"]
[WhiteTeamCountry "KEN"]
[BlackTeamCountry "ZAM"]
[TimeControl "900+10"]

1. d4 {[%emt 0:00:00]} d5 {[%emt 0:00:00]} 2. Bf4 {[%emt 0:00:00]} Nf6 {[%emt 0:00:02]} 3. e3 {[%emt 0:00:11]} e6 {[%emt 0:00:21]} 4. Bd3 {[%emt 0:00:05]} Be7 {[%emt 0:00:02]} 5. Nf3 {[%emt 0:00:11]} O-O {[%emt 0:00:03]} 6. Nbd2 {[%emt 0:00:05]} c5 {[%emt 0:00:06]} 7. c3 {[%emt 0:00:02]} Nc6 {[%emt 0:00:09]} 8. Ne5 {[%emt 0:00:05]} Bd7 {[%emt 0:00:13]} 9. Qf3 {[%emt 0:00:41]} Nxe5 {[%emt 0:03:01]} 10. dxe5 {[%emt 0:00:03]} Ne8 {[%emt 0:00:01]} 11. h4 {[%emt 0:00:23]} c4 {[%emt 0:00:15]} 12. Bc2 {[%emt 0:00:05]} f5 {[%emt 0:00:52]} 13. Qh3 {[%emt 0:04:56]} Kh8 {[%emt 0:00:20]} 14. Nf3 {[%emt 0:00:05]} b5 {[%emt 0:00:35]} 15. Bg5 {[%emt 0:01:58]} b4 {[%emt 0:00:44]} 16. g4 {[%emt 0:01:16]} Rb8 {[%emt 0:02:22]} 17. gxf5 {[%emt 0:03:35]} exf5 {[%emt 0:00:14]} 18. Nd4 {[%emt 0:00:01]} h6 {[%emt 0:02:42]} 19. e6 {[%emt 0:00:05]} Bb5 {[%emt 0:00:43]} 20. Rg1 {[%emt 0:02:21]} Nd6 {[%emt 0:02:49]} 21. Bxf5 {[%emt 0:00:37]} Qe8 {[%emt 0:01:43]} 22. Qg4 {[%emt 0:00:04]} Nxf5 {[%emt 0:00:24]} 23. Nxf5 {[%emt 0:00:04]} h5 {[%emt 0:00:58]} 24. Qh3 {[%emt 0:00:42]} Bxg5 {[%emt 0:00:05]} 25. Rxg5 {[%emt 0:00:07]} g6 {[%emt 0:00:02]} 26. Nd6 {[%emt 0:00:08]} Qe7 {[%emt 0:00:14]} 27. Qg3 {[%emt 0:00:21]} Rf6 {[%emt 0:00:17]} 28. Nf7+ {[%emt 0:00:07]} Rxf7 {[%emt 0:00:08]} 29. exf7 {[%emt 0:00:02]} Rf8 {[%emt 0:00:02]} 30. Rxg6 {[%emt 0:00:03]} Rxf7 {[%emt 0:00:04]} 31. Rg8+ {[%emt 0:00:01]} Kh7 {[%emt 0:00:02]} 32. Qg6# {[%emt 0:00:01]} 1-0

[Event "African Games-chT 2019"]
[Site "Casablanca"]
[Date "2019.08.24"]
[Round "2.16"]
[White "Mululu Linah"]
[Black "Mongeli, Sasha"]
[Result "0-1"]
[ECO "A46"]
[WhiteElo "1633"]
[BlackElo "1527"]
[Annotator "NA"]
[PlyCount "43"]
[EventDate "2019.08.24"]
[EventType "team-tourn"]
[EventCountry "MAR"]
[SourceTitle "playchess.com"]
[Source "ChessBase"]
[SourceQuality "1"]
[WhiteTeam "Zambia"]
[BlackTeam "Kenya"]
[WhiteTeamCountry "ZAM"]
[BlackTeamCountry "KEN"]
[TimeControl "900+10"]

1. d4 {[%emt 0:00:00]} Nf6 {[%emt 0:00:00]} 2. Nf3 {[%emt 0:00:00]} d5 {[%emt 0:00:00]} 3. c4 {[%emt 0:00:37]} e6 {[%emt 0:00:25]} 4. g3 {[%emt 0:00:03]} Bb4+ {[%emt 0:00:27]} 5. Bd2 {[%emt 0:00:24]} Be7 {[%emt 0:00:16]} 6. Bg2 {[%emt 0:00:02]} b6 {[%emt 0:00:51]} 7. O-O {[%emt 0:00:48]} O-O {[%emt 0:00:24]} 8. cxd5 {[%emt 0:01:10]} Nxd5 {[%emt 0:00:23]} 9. Nc3 {[%emt 0:00:32]} Bb7 {[%emt 0:00:14]} 10. Qc2 {[%emt 0:00:13]} Nd7 {[%emt 0:01:05]} 11. Rad1 {[%emt 0:00:29]} c5 {[%emt 0:01:35]} 12. Nxd5 {[%emt 0:02:20]} Bxd5 {[%emt 0:00:25]} 13. dxc5 {[%emt 0:00:12]} Nxc5 {[%emt 0:02:09]} 14. b4 {[%emt 0:03:33]} Ne4 {[%emt 0:01:09]} 15. Bf4 {[%emt 0:02:07]} Bxb4 {[%emt 0:03:04]} 16. Rd4 {[%emt 0:01:19]} Rc8 {[%emt 0:02:04]} 17. Qb1 {[%emt 0:01:04]} Nc3 {[%emt 0:02:24]} 18. Qxb4 {[%emt 0:00:46]} Nxe2+ {[%emt 0:00:06]} 19. Kh1 {[%emt 0:00:01]} Nxd4 {[%emt 0:00:18]} 20. Qxd4 {[%emt 0:00:12]} Rc4 {[%emt 0:00:09]} 21. Qd3 {[%emt 0:01:09]} Qc8 {[%emt 0:00:32]} 22. Qd2 0-1

[Event "African Games-chT 2019"]
[Site "Casablanca"]
[Date "2019.08.24"]
[Round "2.17"]
[White "Adu, Oladapo"]
[Black "Oatlhotse, Providence"]
[Result "1/2-1/2"]
[ECO "B50"]
[WhiteElo "2273"]
[BlackElo "2252"]
[Annotator "NA"]
[PlyCount "164"]
[EventDate "2019.08.24"]
[EventType "team-tourn"]
[EventCountry "MAR"]
[SourceTitle "playchess.com"]
[Source "ChessBase"]
[SourceQuality "1"]
[WhiteTeam "Nigeria"]
[BlackTeam "Botswana"]
[WhiteTeamCountry "NGR"]
[BlackTeamCountry "BOT"]
[TimeControl "900+10"]

1. e4 {[%emt 0:00:00]} c5 {[%emt 0:00:00]} 2. Nf3 {[%emt 0:00:00]} d6 {[%emt 0:00:00]} 3. Nc3 {[%emt 0:00:02]} g6 {[%emt 0:00:08]} 4. d4 {[%emt 0:00:19]} cxd4 {[%emt 0:00:02]} 5. Qxd4 {[%emt 0:00:05]} Nf6 {[%emt 0:00:51]} 6. e5 {[%emt 0:00:04]} dxe5 {[%emt 0:01:15]} 7. Qxd8+ {[%emt 0:00:09]} Kxd8 {[%emt 0:00:02]} 8. Nxe5 {[%emt 0:00:04]} Be6 {[%emt 0:00:02]} 9. Be3 {[%emt 0:00:59]} Bg7 {[%emt 0:01:10]} 10. O-O-O+ {[%emt 0:00:13]} Kc8 {[%emt 0:00:12]} 11. Nb5 {[%emt 0:01:06]} Nd5 {[%emt 0:01:27]} 12. Bd4 {[%emt 0:00:36]} f6 {[%emt 0:00:45]} 13. Nd3 {[%emt 0:01:56]} Nc6 {[%emt 0:00:22]} 14. Nc5 {[%emt 0:01:22]} Bg8 {[%emt 0:00:20]} 15. Bc4 {[%emt 0:00:58]} Bh6+ {[%emt 0:00:59]} 16. Kb1 {[%emt 0:00:08]} Nc3+ 17. Bxc3 {[%emt 0:00:14]} Bxc4 {[%emt 0:00:30]} 18. Na3 {[%emt 0:00:48]} Bf7 {[%emt 0:00:56]} 19. Rhe1 {[%emt 0:00:34]} a6 {[%emt 0:02:37]} 20. Ne6 {[%emt 0:01:58]} Bxe6 {[%emt 0:03:21]} 21. Rxe6 {[%emt 0:00:01]} Kc7 {[%emt 0:00:05]} 22. Nc4 {[%emt 0:00:11]} Rad8 {[%emt 0:00:15]} 23. Rde1 {[%emt 0:00:04]} Rd5 {[%emt 0:00:09]} 24. a4 {[%emt 0:00:13]} Rhd8 {[%emt 0:00:23]} 25. g3 {[%emt 0:01:22]} Rd1+ {[%emt 0:00:20]} 26. Rxd1 {[%emt 0:00:06]} Rxd1+ {[%emt 0:00:01]} 27. Ka2 {[%emt 0:00:01]} Kd7 {[%emt 0:00:36]} 28. Re2 {[%emt 0:00:07]} e5 {[%emt 0:00:07]} 29. a5 {[%emt 0:00:18]} Bf8 {[%emt 0:00:10]} 30. Ne3 {[%emt 0:00:36]} Rh1 {[%emt 0:00:15]} 31. h4 {[%emt 0:00:02]} Bb4 {[%emt 0:00:32]} 32. Bxb4 {[%emt 0:00:08]} Nxb4+ {[%emt 0:00:01]} 33. Kb3 {[%emt 0:00:01]} Nc6 {[%emt 0:00:02]} 34. Rd2+ {[%emt 0:00:04]} Ke6 {[%emt 0:00:16]} 35. Nc4 {[%emt 0:00:03]} Ra1 {[%emt 0:00:21]} 36. Kc3 {[%emt 0:00:34]} Nd4 {[%emt 0:00:56]} 37. Kb4 {[%emt 0:00:39]} Nc6+ {[%emt 0:01:03]} 38. Kc5 {[%emt 0:00:08]} Nxa5 39. Rd6+ {[%emt 0:00:15]} Ke7 {[%emt 0:00:24]} 40. Rb6 {[%emt 0:00:07]} h5 {[%emt 0:00:26]} 41. Ne3 {[%emt 0:00:32]} f5 {[%emt 0:00:11]} 42. b4 {[%emt 0:00:08]} f4 {[%emt 0:00:14]} 43. Nd5+ {[%emt 0:00:08]} Kd7 {[%emt 0:00:01]} 44. bxa5 {[%emt 0:00:08]} Rxa5+ {[%emt 0:00:04]} 45. Kc4 {[%emt 0:00:01]} Rb5 {[%emt 0:00:26]} 46. Rxg6 {[%emt 0:00:14]} Rb1 {[%emt 0:00:04]} 47. gxf4 {[%emt 0:00:05]} exf4 {[%emt 0:00:01]} 48. Nxf4 {[%emt 0:00:06]} a5 {[%emt 0:00:00]} 49. Nd3 {[%emt 0:00:23]} Kc7 {[%emt 0:00:25]} 50. Rg5 {[%emt 0:00:05]} Kb6 {[%emt 0:00:06]} 51. Rg8 {[%emt 0:02:46]} Ka7 {[%emt 0:00:10]} 52. Rg5 {[%emt 0:00:26]} Kb6 {[%emt 0:00:06]} 53. Rxh5 {[%emt 0:00:14]} a4 {[%emt 0:00:04]} 54. Rh8 {[%emt 0:00:08]} Ka7 {[%emt 0:00:14]} 55. Rh5 {[%emt 0:00:24]} Kb6 {[%emt 0:00:13]} 56. Nc5 {[%emt 0:00:05]} a3 {[%emt 0:00:10]} 57. Na4+ {[%emt 0:00:02]} Ka6 {[%emt 0:00:24]} 58. Nc3 {[%emt 0:00:02]} b5+ {[%emt 0:00:11]} 59. Kc5 {[%emt 0:00:26]} b4 {[%emt 0:00:10]} 60. Rh6+ {[%emt 0:00:03]} Kb7 {[%emt 0:00:10]} 61. Rh7+ {[%emt 0:00:02]} Kb8 {[%emt 0:00:08]} 62. Na2 {[%emt 0:00:21]} Rb2 {[%emt 0:00:14]} 63. Rh8+ {[%emt 0:01:13]} Kb7 {[%emt 0:00:08]} 64. Rh7+ {[%emt 0:00:04]} Kb8 {[%emt 0:00:01]} 65. Kb6 {[%emt 0:00:02]} Kc8 {[%emt 0:00:07]} 66. Nc1 {[%emt 0:00:10]} Rxc2 {[%emt 0:00:19]} 67. Nb3 {[%emt 0:00:01]} Rc3 {[%emt 0:00:11]} 68. Nd4 {[%emt 0:00:35]} b3 {[%emt 0:00:13]} 69. Rh8+ {[%emt 0:00:30]} Kd7 {[%emt 0:00:02]} 70. Nxb3 {[%emt 0:00:04]} Rxb3+ {[%emt 0:00:01]} 71. Kc5 {[%emt 0:00:01]} a2 {[%emt 0:00:18]} 72. Ra8 {[%emt 0:00:01]} Rb2 {[%emt 0:00:01]} 73. f4 {[%emt 0:00:09]} Ke6 {[%emt 0:00:01]} 74. Kd4 {[%emt 0:00:02]} Kf5 {[%emt 0:00:04]} 75. Ke3 {[%emt 0:00:04]} Rb3+ {[%emt 0:00:04]} 76. Kf2 {[%emt 0:00:04]} Rb2+ {[%emt 0:00:00]} 77. Ke3 {[%emt 0:00:01]} Rb3+ {[%emt 0:00:01]} 78. Kd4 {[%emt 0:00:02]} Rb2 {[%emt 0:00:09]} 79. h5 {[%emt 0:00:07]} Kxf4 {[%emt 0:00:18]} 80. h6 {[%emt 0:00:02]} Rh2 {[%emt 0:00:26]} 81. h7 {[%emt 0:00:05]} Rxh7 {[%emt 0:00:40]} 82. Rxa2 {[%emt 0:00:01]} Rd7+ {[%emt 0:00:08]} 1/2-1/2

[Event "African Games-chT 2019"]
[Site "Casablanca"]
[Date "2019.08.24"]
[Round "2.18"]
[White "Khetho, Phemelo"]
[Black "Osunfuyi, Abimbola"]
[Result "0-1"]
[ECO "B20"]
[WhiteElo "2178"]
[BlackElo "2235"]
[Annotator "NA"]
[PlyCount "156"]
[EventDate "2019.08.24"]
[EventType "team-tourn"]
[EventCountry "MAR"]
[SourceTitle "playchess.com"]
[Source "ChessBase"]
[SourceQuality "1"]
[WhiteTeam "Botswana"]
[BlackTeam "Nigeria"]
[WhiteTeamCountry "BOT"]
[BlackTeamCountry "NGR"]
[TimeControl "900+10"]

1. e4 {[%emt 0:00:00]} c5 {[%emt 0:00:00]} 2. b3 {[%emt 0:00:04]} Nc6 {[%emt 0:00:04]} 3. Bb2 {[%emt 0:00:03]} e5 {[%emt 0:00:03]} 4. Bc4 {[%emt 0:00:04]} d6 {[%emt 0:01:08]} 5. Nc3 {[%emt 0:00:07]} Nf6 {[%emt 0:00:37]} 6. d3 {[%emt 0:00:13]} Be7 {[%emt 0:00:05]} 7. Nge2 {[%emt 0:00:04]} O-O {[%emt 0:00:13]} 8. O-O {[%emt 0:00:12]} Bg4 {[%emt 0:00:47]} 9. h3 {[%emt 0:00:06]} Be6 {[%emt 0:01:06]} 10. f4 {[%emt 0:00:19]} a6 {[%emt 0:01:49]} 11. f5 {[%emt 0:00:53]} Bd7 {[%emt 0:01:16]} 12. a4 {[%emt 0:00:10]} Rb8 {[%emt 0:00:12]} 13. Ng3 {[%emt 0:02:11]} Nb4 {[%emt 0:01:06]} 14. Bc1 {[%emt 0:04:22]} Bc6 {[%emt 0:02:51]} 15. a5 {[%emt 0:01:13]} d5 {[%emt 0:01:05]} 16. exd5 {[%emt 0:00:02]} Nbxd5 {[%emt 0:00:16]} 17. Nxd5 Nxd5 18. Ne4 {[%emt 0:01:52]} Nf6 {[%emt 0:00:57]} 19. Nxf6+ {[%emt 0:01:38]} Bxf6 {[%emt 0:00:02]} 20. Be3 {[%emt 0:00:02]} e4 {[%emt 0:00:58]} 21. Bxc5 {[%emt 0:01:26]} Bxa1 {[%emt 0:00:38]} 22. Qxa1 {[%emt 0:00:03]} Qg5 {[%emt 0:01:01]} 23. Rf2 {[%emt 0:01:43]} e3 {[%emt 0:00:23]} 24. Re2 {[%emt 0:00:05]} Rfe8 {[%emt 0:00:09]} 25. Qf1 {[%emt 0:00:35]} Re5 {[%emt 0:00:28]} 26. h4 {[%emt 0:00:48]} Qxf5 {[%emt 0:00:42]} 27. Qxf5 {[%emt 0:00:43]} Rxf5 {[%emt 0:00:01]} 28. Bxe3 {[%emt 0:00:03]} Re8 {[%emt 0:00:37]} 29. d4 {[%emt 0:00:22]} Rxa5 {[%emt 0:00:32]} 30. Kf2 {[%emt 0:00:17]} Rf5+ 31. Kg1 Rf6 {[%emt 0:00:33]} 32. Bg5 {[%emt 0:00:28]} Rxe2 {[%emt 0:00:04]} 33. Bxe2 {[%emt 0:00:03]} Re6 {[%emt 0:00:06]} 34. Bc4 {[%emt 0:00:10]} Re4 {[%emt 0:00:14]} 35. d5 {[%emt 0:00:04]} Bd7 {[%emt 0:00:23]} 36. Kf2 {[%emt 0:00:06]} h6 {[%emt 0:00:02]} 37. Bd8 {[%emt 0:00:04]} Rf4+ {[%emt 0:00:06]} 38. Kg3 {[%emt 0:00:02]} Rg4+ {[%emt 0:00:02]} 39. Kf3 {[%emt 0:00:01]} Rg6 {[%emt 0:00:09]} 40. Be7 {[%emt 0:00:03]} h5 {[%emt 0:00:04]} 41. g3 {[%emt 0:00:03]} Bf5 {[%emt 0:00:04]} 42. d6 {[%emt 0:00:07]} Bd7 {[%emt 0:00:02]} 43. Bd5 {[%emt 0:00:03]} b5 {[%emt 0:00:04]} 44. c4 {[%emt 0:00:04]} Rg4 {[%emt 0:00:15]} 45. c5 {[%emt 0:00:01]} Rd4 {[%emt 0:00:04]} 46. c6 {[%emt 0:00:03]} Bg4+ {[%emt 0:00:02]} 47. Ke3 Rxd5 {[%emt 0:00:06]} 48. d7 {[%emt 0:00:04]} Bxd7 {[%emt 0:00:03]} 49. cxd7 {[%emt 0:00:03]} Rxd7 {[%emt 0:00:01]} 50. Bc5 {[%emt 0:00:03]} Kh7 {[%emt 0:00:04]} 51. b4 {[%emt 0:00:02]} Kg6 {[%emt 0:00:02]} 52. Bf8 {[%emt 0:00:03]} Rd8 {[%emt 0:00:03]} 53. Bc5 {[%emt 0:00:01]} Kf5 {[%emt 0:00:01]} 54. Kf3 {[%emt 0:00:06]} Rd3+ {[%emt 0:00:02]} 55. Kf2 {[%emt 0:00:00]} Ke4 {[%emt 0:00:04]} 56. Bf8 {[%emt 0:00:03]} g6 {[%emt 0:00:04]} 57. Bh6 {[%emt 0:00:22]} Rb3 {[%emt 0:00:05]} 58. Bf8 {[%emt 0:00:02]} Rb2+ {[%emt 0:00:03]} 59. Ke1 {[%emt 0:00:01]} Kd3 {[%emt 0:00:07]} 60. Bc5 {[%emt 0:00:05]} Rg2 {[%emt 0:00:05]} 61. Bd6 {[%emt 0:00:02]} Ke4 {[%emt 0:00:11]} 62. Kf1 {[%emt 0:00:03]} Kf3 {[%emt 0:00:01]} 63. Ke1 {[%emt 0:00:01]} Re2+ {[%emt 0:00:05]} 64. Kd1 {[%emt 0:00:02]} Re4 {[%emt 0:00:16]} 65. Kc2 {[%emt 0:00:02]} Ke2 {[%emt 0:00:04]} 66. Kc3 {[%emt 0:00:04]} Rc4+ {[%emt 0:00:03]} 67. Kb3 {[%emt 0:00:01]} Kd3 {[%emt 0:00:02]} 68. Be5 {[%emt 0:00:04]} Re4 {[%emt 0:00:05]} 69. Bd6 {[%emt 0:00:07]} Re2 {[%emt 0:00:18]} 70. Bf4 {[%emt 0:00:03]} f6 {[%emt 0:00:04]} 71. Bh6 {[%emt 0:00:15]} Re4 {[%emt 0:00:07]} 72. Bg7 {[%emt 0:00:03]} g5 {[%emt 0:00:08]} 73. Bxf6 {[%emt 0:00:03]} g4 {[%emt 0:00:01]} 74. Bd8 {[%emt 0:00:06]} Re3 {[%emt 0:00:04]} 75. Bc7 {[%emt 0:00:04]} Ke2+ {[%emt 0:00:07]} 76. Kc2 {[%emt 0:00:01]} Rf3 {[%emt 0:00:08]} 77. Be5 {[%emt 0:00:10]} Kf2 {[%emt 0:00:03]} 78. Kd2 {[%emt 0:00:01]} Rxg3 0-1